fUST/lending_fUST_20251014
["ID","MTS","AMOUNT","RATE_DAILY","PERIOD"]
[391164357,1760404257833,-500.0,0.00021917,2]
[391164358,1760404257843,-500.0,0.00021917,2]
[391164359,1760404257853,-500.0,0.00021917,2]
[391164360,1760404257863,-500.0,0.00021917,2]
[391164361,1760404257872,-517.76,0.00021917,2]
[391164362,1760404257882,-503.63743791,0.00021917,2]
[391164363,1760404257892,-500.38647464,0.00021917,2]
[391164364,1760404257901,-151.0,0.00021917,7]
[391164365,1760404257911,-151.0,0.00021917,7]
[391164366,1760404257921,-151.0,0.00021918,7]
[391164367,1760404257931,-151.0,0.00021918,7]
[391164368,1760404257940,-365.17496257,0.00021973,2]
[391164369,1760404257949,-500.55905955,0.00021973,2]
[391164370,1760404257958,-500.0,0.00021973,2]
[391164371,1760404257967,-500.0,0.00021973,2]
[391164372,1760404257977,-500.0,0.00021973,2]
[391164373,1760404257986,-617.18139601,0.00021973,2]
[391164374,1760404257996,-279.86647287,0.00021973,2]
[391164375,1760404258009,-500.0,0.00021973,2]
[391164376,1760404258019,-500.0,0.00021973,2]
[391164377,1760404258029,-500.0,0.00021973,2]
[391164378,1760404258039,-486.75369449,0.00021973,2]
[391164379,1760404258049,-500.0,0.00021973,2]
[391164380,1760404258059,-500.0,0.00021973,2]
[391164381,1760404258068,-501.49849318,0.00021973,2]
[391164382,1760404258079,-500.0,0.00021973,2]
[391164383,1760404258089,-500.0,0.00021973,2]
[391164384,1760404258098,-500.0,0.00021973,2]
[391164385,1760404258107,-500.0,0.00021973,2]
[391164386,1760404258117,-500.0,0.00021973,2]
[391164387,1760404258127,-500.0,0.00021973,2]
[391164388,1760404258136,-500.0,0.00021973,2]
[391164389,1760404258146,-500.3923014,0.00021973,2]
[391164390,1760404258155,-500.0,0.00021973,2]
[391164391,1760404258165,-500.0,0.00021973,2]
[391164392,1760404258174,-500.0,0.00021973,2]
[391164393,1760404258184,-500.0,0.00021973,2]
[391164394,1760404258193,-500.0,0.00021973,2]
[391164395,1760404258202,-510.92511337,0.00021973,2]
[391164396,1760404258211,-500.0,0.00021973,2]
[391164397,1760404258220,-201.39294533,0.00021973,2]
[391164398,1760404258230,-303.82076833,0.00021973,2]
[391164399,1760404258239,-500.0,0.00021973,2]
[391164400,1760404258248,-503.0654575,0.00021973,2]
[391164401,1760404258257,-500.0,0.00021973,2]
[391164402,1760404258267,-268.60955895,0.00021973,2]
[391164403,1760404258278,-501.46025524,0.00021973,2]
[391164404,1760404258288,-200.39517621,0.00021973,2]
[391164405,1760404258298,-261.65254252,0.00021973,2]
[391164406,1760404258307,-169.4844253,0.00021973,2]
[391164407,1760404258316,-183.22060584,0.00021973,2]
[391164408,1760404258326,-500.0,0.00021973,2]
[391164409,1760404258336,-500.0,0.00021973,2]
[391164410,1760404258346,-500.0,0.00021973,2]
[391164411,1760404258358,-500.0,0.00021973,2]
[391164412,1760404258367,-500.0,0.00021973,2]
[391164413,1760404258377,-500.0,0.00021973,2]
[391164414,1760404258385,-500.0,0.00021973,2]
[391164415,1760404258394,-500.0,0.00021973,2]
[391164416,1760404258403,-500.0,0.00021973,2]
[391164417,1760404258414,-500.0,0.00021973,2]
[391164418,1760404258424,-500.0,0.00021973,2]
[391164419,1760404258433,-500.0,0.00021973,2]
[391164420,1760404258443,-151.0,0.0002199,7]
[391164421,1760404258452,-151.0,0.0002199,7]
[391164422,1760404258462,-151.0,0.0002199,7]
[391164423,1760404258471,-151.0,0.0002199,7]
[391164424,1760404258480,-151.0,0.0002199,7]
[391164425,1760404258489,-151.0,0.0002199,7]
[391164426,1760404258498,-151.0,0.0002199,7]
[391164427,1760404258507,-464.007783,0.0002199,7]
[391164428,1760404258516,-151.0,0.0002199,7]
[391164429,1760404258526,-464.007783,0.0002199,7]
[391164430,1760404258535,-151.0,0.0002199,7]
[391164431,1760404258544,-151.0,0.0002199,7]
[391164432,1760404258553,-464.007783,0.0002199,7]
[391164433,1760404258562,-151.0,0.0002199,7]
[391164434,1760404258571,-464.007783,0.0002199,7]
[391164435,1760404258580,-201.964731,0.0002199,7]
[391164436,1760404258589,-151.0,0.0002199,7]
[391164437,1760404258598,-151.0,0.0002199,7]
[391164438,1760404258607,-151.0,0.0002199,7]
[391164439,1760404258616,-249.009694,0.0002199,7]
[391164440,1760404258626,-151.0,0.0002199,7]
[391164441,1760404258636,-151.0,0.0002199,7]
[391164442,1760404258645,-151.0,0.0002199,7]
[391164443,1760404258654,-151.0,0.0002199,7]
[391164444,1760404258663,-43406.49205454,0.0002199,2]
[391164445,1760404258672,-25267.68,0.00022,7]
[391164446,1760404258681,-151.0,0.00022,7]
[391164447,1760404258691,-217.827065,0.00022,7]
[391164448,1760404258700,-217.827065,0.00022,7]
[391164449,1760404258710,-217.827065,0.00022,7]
[391164450,1760404258719,-151.0,0.00022,7]
[391164451,1760404258728,-217.827065,0.00022,7]
[391164452,1760404258737,-151.0,0.00022,7]
[391164453,1760404258746,-190.461994,0.00022,7]
[391164454,1760404258756,-151.0,0.00022,7]
[391164455,1760404258766,-151.0,0.00022,7]
[391164456,1760404258775,-151.227944,0.00022,7]
[391164457,1760404258784,-151.0,0.00022,7]
[391164458,1760404258794,-205.66092993,0.00022018,2]
[391164459,1760404258803,-448.0,0.0002204,2]
[391164460,1760404258812,-151.0,0.000221,10]
[391164461,1760404258824,-151.0,0.000222,10]
[391164462,1760404258834,-500.0,0.00022244,2]
[391164463,1760404258843,-500.0,0.00022247,2]
[391164464,1760404258853,-300.0,0.0002225,20]
[391164465,1760404258862,-300.0,0.0002225,20]
[391164466,1760404258871,-300.0,0.0002225,20]
[391164467,1760404258881,-300.0,0.0002225,20]
[391164468,1760404258890,-300.0,0.0002225,20]
[391164469,1760404258899,-300.0,0.0002225,20]
[391164470,1760404258908,-300.0,0.0002225,20]
[391164471,1760404258918,-300.0,0.0002225,20]
[391164472,1760404258927,-300.0,0.0002225,20]
[391164473,1760404258936,-300.0,0.0002225,20]
[391164474,1760404258946,-300.0,0.0002225,20]
[391164475,1760404258956,-300.0,0.0002225,20]
[391164476,1760404258966,-300.0,0.0002225,20]
[391164477,1760404258974,-300.0,0.0002225,20]
[391164478,1760404258983,-300.0,0.0002225,20]
[391164479,1760404258993,-600.0,0.0002225,20]
[391164480,1760404259005,-502.60079924,0.00022296,2]
[391164481,1760404259015,-500.0,0.00022299,2]
[391164482,1760404259025,-151.0,0.000223,5]
[391164483,1760404259035,-466.45038513,0.00022354,2]
[391164484,1760404259046,-151.0,0.000224,8]
[391164485,1760404259055,-151.0,0.000224,8]
[391164486,1760404259065,-1000.0,0.00022421,2]
[391164487,1760404259075,-1000.0,0.00022421,2]
[391164488,1760404259085,-1000.0,0.00022421,2]
[391164489,1760404259094,-1000.0,0.00022421,2]
[391164490,1760404259103,-1013.72261937,0.00022421,2]
[391164491,1760404259113,-151.0,0.000225,5]
[391164492,1760404259122,-1000.0,0.00022521,2]
[391164493,1760404259130,-500.0,0.00022521,2]
[391164494,1760404259139,-408.88053992,0.00022521,2]
[391164495,1760404259148,-1000.0,0.00022521,2]
[391164496,1760404259249,-1000.0,0.00022521,2]
[391164497,1760404259269,-1000.0,0.00022521,2]
[391164498,1760404259279,-1000.0,0.00022521,2]
[391164499,1760404259288,-1000.0,0.00022521,2]
[391164500,1760404259299,-500.0,0.00022521,2]
[391164501,1760404259309,-1000.0,0.00022521,2]
[391164502,1760404259318,-1000.0,0.00022521,2]
[391164503,1760404259328,-500.0,0.00022521,2]
[391164504,1760404259337,-500.0,0.00022521,2]
[391164505,1760404259346,-1000.0,0.00022521,2]
[391164506,1760404259356,-507.5090354,0.00022521,2]
[391164507,1760404259366,-1000.0,0.00022521,2]
[391164508,1760404259377,-1000.0,0.00022521,2]
[391164509,1760404259386,-500.0,0.00022521,2]
[391164510,1760404259396,-151.0,0.000226,8]
[391164511,1760404259406,-232.48626862,0.00022618,2]
[391164512,1760404259416,-500.0,0.00022795,2]
[391164513,1760404259426,-151.0,0.00022968,7]
[391164514,1760404259436,-151.0,0.00022968,7]
[391164515,1760404259446,-151.766486,0.00022968,7]
[391164516,1760404259455,-462.351807,0.00022968,7]
[391164517,1760404259466,-462.351807,0.00022968,7]
[391164518,1760404259476,-462.351807,0.00022968,7]
[391164519,1760404259486,-462.351807,0.00022968,7]
[391164520,1760404259496,-151.0,0.00022968,7]
[391164521,1760404259506,-151.0,0.00022968,7]
[391164522,1760404259518,-151.0,0.00022968,7]
[391164523,1760404259527,-151.0,0.00022968,7]
[391164524,1760404259536,-1500.0,0.00022968,2]
[391164525,1760404259546,-1510.91624184,0.00022968,2]
[391164526,1760404259554,-1500.0,0.00022968,2]
[391164527,1760404259564,-1500.0,0.00022968,2]
[391164528,1760404259573,-160.0,0.00023,2]
[391164529,1760404259583,-91268.80601852,0.00023,3]
[391164530,1760404259593,-160.0,0.00023017,2]
[391164531,1760404259603,-1500.0,0.00023068,2]
[391164532,1760404259612,-1500.0,0.00023068,2]
[391164533,1760404259622,-1500.0,0.00023068,2]
[391164534,1760404259632,-1505.46787646,0.00023068,2]
[391164535,1760404259641,-1500.0,0.00023068,2]
[391164536,1760404259651,-1500.0,0.00023068,2]
[391164537,1760404259661,-1500.0,0.00023068,2]
[391164538,1760404259671,-500.0,0.00023068,2]
[391164539,1760404259681,-1500.0,0.00023068,2]
[391164540,1760404259691,-500.0,0.00023069,2]
[391164541,1760404259701,-1593.34,0.00023175,3]
[391164542,1760404259710,-796.68,0.00023175,3]
[391164543,1760404259720,-398.34,0.00023175,3]
[391164544,1760404259729,-259.31160731,0.00023218,2]
[391164545,1760404259739,-4188.82395261,0.00023259,2]
[391164546,1760404259748,-162.380719,0.00023264,2]
[391164547,1760404259758,-151.0,0.00023264,2]
[391164548,1760404259767,-151.0,0.00023264,2]
[391164549,1760404259777,-151.0,0.00023264,2]
[391164550,1760404259786,-151.0,0.00023264,2]
[391164551,1760404259795,-151.0,0.00023264,2]
[391164552,1760404259805,-194.39867453,0.00023264,2]
[391164553,1760404259814,-151.0,0.00023264,2]
[391164554,1760404259823,-151.0,0.00023264,2]
[391164555,1760404259833,-151.46004002,0.00023264,2]
[391164556,1760404259842,-1000.0,0.00023264,2]
[391164557,1760404259851,-1000.0,0.00023264,2]
[391164558,1760404259860,-1000.0,0.00023264,2]
[391164559,1760404259870,-1000.0,0.00023264,2]
[391164560,1760404259879,-1000.0,0.00023264,2]
[391164561,1760404259888,-1000.0,0.00023264,2]
[391164562,1760404259898,-1000.0,0.00023264,2]
[391164563,1760404259907,-1000.0,0.00023264,2]
[391164564,1760404259916,-1000.0,0.00023264,2]
[391164565,1760404259925,-1000.0,0.00023264,2]
[391164566,1760404259935,-814.05751991,0.00023264,2]
[391164567,1760404259944,-151.0,0.00023264,2]
[391164568,1760404259954,-151.0,0.00023264,2]
[391164569,1760404259963,-151.0,0.00023264,2]
[391164570,1760404259972,-151.0,0.00023264,2]
[391164571,1760404259981,-151.0,0.00023264,2]
[391164572,1760404259991,-151.0,0.00023264,2]
[391164573,1760404260001,-151.0,0.00023264,2]
[391164574,1760404260013,-151.0,0.00023264,2]
[391164575,1760404260023,-151.0,0.00023264,2]
[391164576,1760404260032,-2616.20294735,0.00023264,2]
[391164577,1760404260042,-151.0,0.00023264,2]
[391164578,1760404260052,-151.0,0.00023264,2]
[391164579,1760404260061,-152.45985867,0.00023264,2]
[391164580,1760404260071,-2030.296672,0.00023264,2]
[391164581,1760404260082,-151.0,0.00023264,2]
[391164582,1760404260091,-151.0,0.00023264,2]
[391164583,1760404260100,-151.0,0.00023264,2]
[391164584,1760404260110,-18603.8837,0.00023264,2]
[391164585,1760404260119,-151.0,0.00023264,2]
[391164586,1760404260128,-151.0,0.00023264,2]
[391164587,1760404260138,-151.0,0.00023264,2]
[391164588,1760404260147,-151.0,0.00023264,2]
[391164589,1760404260156,-151.0,0.00023264,2]
[391164590,1760404260165,-151.0,0.00023264,2]
[391164591,1760404260175,-151.0,0.00023264,2]
[391164592,1760404260184,-151.0,0.00023264,2]
[391164593,1760404260193,-151.0,0.00023264,2]
[391164594,1760404260202,-151.0,0.00023264,2]
[391164595,1760404260212,-1000.0,0.00023264,2]
[391164596,1760404260223,-151.0,0.00023264,2]
[391164597,1760404260234,-151.0,0.00023264,2]
[391164598,1760404260244,-151.0,0.00023264,2]
[391164599,1760404260256,-1000.0,0.00023264,2]
[391164600,1760404260266,-151.0,0.00023264,2]
[391164601,1760404260277,-151.0,0.00023264,2]
[391164602,1760404260286,-151.0,0.00023264,2]
[391164603,1760404260295,-1000.0,0.00023264,2]
[391164604,1760404260304,-151.0,0.00023264,2]
[391164605,1760404260313,-250.0,0.00023264,2]
[391164606,1760404260323,-151.0,0.00023264,2]
[391164607,1760404260332,-151.0,0.00023264,2]
[391164608,1760404260341,-1000.0,0.00023264,2]
[391164609,1760404260351,-151.0,0.00023264,2]
[391164610,1760404260361,-250.0,0.00023264,2]
[391164611,1760404260370,-151.0,0.00023264,2]
[391164612,1760404260379,-151.0,0.00023264,2]
[391164613,1760404260389,-1000.0,0.00023264,2]
[391164614,1760404260397,-250.0,0.00023264,2]
[391164615,1760404260406,-151.0,0.00023264,2]
[391164616,1760404260415,-151.0,0.00023264,2]
[391164617,1760404260425,-151.0,0.00023264,2]
[391164618,1760404260434,-1000.0,0.00023264,2]
[391164619,1760404260443,-250.0,0.00023264,2]
[391164620,1760404260452,-151.0,0.00023264,2]
[391164621,1760404260462,-151.0,0.00023264,2]
[391164622,1760404260471,-151.0,0.00023264,2]
[391164623,1760404260480,-1000.0,0.00023264,2]
[391164624,1760404260489,-250.0,0.00023264,2]
[391164625,1760404260498,-151.0,0.00023264,2]
[391164626,1760404260507,-151.0,0.00023264,2]
[391164627,1760404260516,-151.0,0.00023264,2]
[391164628,1760404260527,-1000.0,0.00023264,2]
[391164629,1760404260537,-250.0,0.00023264,2]
[391164630,1760404260546,-151.0,0.00023264,2]
[391164631,1760404260556,-295.76104844,0.00023264,2]
[391164632,1760404260565,-151.0,0.00023264,2]
[391164633,1760404260574,-1000.0,0.00023264,2]
[391164634,1760404260584,-151.0,0.00023264,2]
[391164635,1760404260593,-151.0,0.00023264,2]
[391164636,1760404260603,-1000.0,0.00023264,2]
[391164637,1760404260613,-1000.0,0.00023264,2]
[391164638,1760404260623,-1000.0,0.00023264,2]
[391164639,1760404260633,-162.380719,0.00023264,2]
[391164640,1760404260642,-1000.0,0.00023264,2]
[391164641,1760404260652,-1000.0,0.00023264,2]
[391164642,1760404260662,-1000.0,0.00023264,2]
[391164643,1760404260671,-250.0,0.00023264,2]
[391164644,1760404260681,-1000.0,0.00023264,2]
[391164645,1760404260690,-250.0,0.00023264,2]
[391164646,1760404260700,-500.0,0.00023264,2]
[391164647,1760404260709,-1000.0,0.00023264,2]
[391164648,1760404260718,-250.0,0.00023264,2]
[391164649,1760404260727,-500.0,0.00023264,2]
[391164650,1760404260736,-1000.0,0.00023264,2]
[391164651,1760404260745,-250.0,0.00023264,2]
[391164652,1760404260754,-500.0,0.00023264,2]
[391164653,1760404260764,-1078.42669778,0.00023264,2]
[391164654,1760404260775,-250.0,0.00023264,2]
[391164655,1760404260784,-500.0,0.00023264,2]
[391164656,1760404260794,-250.0,0.00023264,2]
[391164657,1760404260803,-500.0,0.00023264,2]
[391164658,1760404260813,-250.0,0.00023264,2]
[391164659,1760404260823,-500.0,0.00023264,2]
[391164660,1760404260832,-500.0,0.00023264,2]
[391164661,1760404260841,-250.0,0.00023264,2]
[391164662,1760404260851,-513.2413398,0.00023264,2]
[391164663,1760404260861,-250.0,0.00023264,2]
[391164664,1760404260870,-500.0,0.00023264,2]
[391164665,1760404260879,-250.0,0.00023264,2]
[391164666,1760404260889,-500.0,0.00023264,2]
[391164667,1760404260898,-250.0,0.00023264,2]
[391164668,1760404260907,-500.0,0.00023264,2]
[391164669,1760404260915,-250.0,0.00023264,2]
[391164670,1760404260924,-500.0,0.00023264,2]
[391164671,1760404260933,-250.0,0.00023264,2]
[391164672,1760404260942,-500.0,0.00023264,2]
[391164673,1760404260951,-250.0,0.00023264,2]
[391164674,1760404260961,-500.0,0.00023264,2]
[391164675,1760404260970,-250.0,0.00023264,2]
[391164676,1760404260979,-500.0,0.00023264,2]
[391164677,1760404260988,-250.0,0.00023264,2]
[391164678,1760404260998,-500.0,0.00023264,2]
[391164679,1760404261010,-250.0,0.00023264,2]
[391164680,1760404261019,-500.0,0.00023264,2]
[391164681,1760404261031,-250.0,0.00023264,2]
[391164682,1760404261041,-500.0,0.00023264,2]
[391164683,1760404261050,-500.0,0.00023264,2]
[391164684,1760404261059,-500.0,0.00023264,2]
[391164685,1760404261069,-250.0,0.00023264,2]
[391164686,1760404261079,-500.0,0.00023264,2]
[391164687,1760404261089,-250.0,0.00023264,2]
[391164688,1760404261098,-500.0,0.00023264,2]
[391164689,1760404261107,-250.0,0.00023264,2]
[391164690,1760404261116,-500.0,0.00023264,2]
[391164691,1760404261125,-250.0,0.00023264,2]
[391164692,1760404261134,-500.0,0.00023264,2]
[391164693,1760404261143,-151.0,0.00023264,2]
[391164694,1760404261152,-250.0,0.00023264,2]
[391164695,1760404261161,-617.56311563,0.00023264,2]
[391164696,1760404261170,-151.0,0.00023264,7]
[391164697,1760404261179,-151.0,0.00023264,7]
[391164698,1760404261188,-151.0,0.00023264,7]
[391164699,1760404261197,-151.0,0.00023264,7]
[391164700,1760404261206,-151.0,0.00023264,7]
[391164701,1760404261215,-151.0,0.00023264,7]
[391164702,1760404261224,-152.428226,0.00023264,7]
[391164703,1760404261233,-151.0,0.00023264,7]
[391164704,1760404261242,-151.0,0.00023264,7]
[391164705,1760404261250,-151.0,0.00023264,7]
[391164706,1760404261259,-151.0,0.00023264,7]
[391164707,1760404261268,-151.0,0.00023264,7]
[391164708,1760404261278,-151.0,0.00023264,7]
[391164709,1760404261287,-151.0,0.00023264,7]
[391164710,1760404261296,-151.0,0.00023264,7]
[391164711,1760404261305,-151.0,0.00023264,7]
[391164712,1760404261315,-151.0,0.00023264,7]
[391164713,1760404261324,-151.0,0.00023264,7]
[391164714,1760404261333,-151.0,0.00023264,7]
[391164715,1760404261342,-151.0,0.00023268,7]
[391164716,1760404261351,-1422.44020861,0.00023319,2]
[391164717,1760404261361,-500.0,0.00023343,2]
[391164718,1760404261370,-500.0,0.0002336,2]
[391164719,1760404261379,-500.0,0.0002336,2]
[391164720,1760404261388,-500.0,0.0002336,2]
[391164721,1760404261397,-500.0,0.0002336,2]
[391164722,1760404261407,-501.00593403,0.0002336,2]
[391164723,1760404261416,-503.21846594,0.0002336,2]
[391164724,1760404261425,-503.16002764,0.0002336,2]
[391164725,1760404261433,-251.93278358,0.00023375,2]
[391164726,1760404261443,-2000.0,0.00023516,2]
[391164727,1760404261453,-2000.0,0.00023516,2]
[391164728,1760404261462,-2000.0,0.00023516,2]
[391164729,1760404261471,-260.0,0.00023565,2]
[391164730,1760404261479,-420.0,0.00023585,2]
[391164731,1760404261488,-301.0,0.00023586,2]
[391164732,1760404261497,-300.0,0.00023586,2]
[391164733,1760404261506,-300.0,0.00023586,2]
[391164734,1760404261516,-300.0,0.00023586,2]
[391164735,1760404261526,-1200.0,0.00023614,2]
[391164736,1760404261535,-505.03816899,0.00023616,2]
[391164737,1760404261544,-2000.0,0.00023616,2]
[391164738,1760404261554,-2000.0,0.00023616,2]
[391164739,1760404261563,-1872.65176127,0.00023616,2]
[391164740,1760404261573,-1234.49869312,0.00023616,2]
[391164741,1760404261582,-2000.0,0.00023616,2]
[391164742,1760404261593,-2000.0,0.00023616,2]
[391164743,1760404261602,-500.0,0.00023617,2]
[391164744,1760404261710,-150.0,0.00023636,2]
[391164745,1760404261720,-1680.0,0.00023697,2]
[391164746,1760404261730,-151.0,0.00023812,2]
[391164747,1760404261740,-19292.2273969,0.00023812,2]
[391164748,1760404261750,-168.3888056,0.00023812,2]
[391164749,1760404261759,-151.0,0.00023812,7]
[391164750,1760404261769,-151.0,0.00023812,7]
[391164751,1760404261782,-151.0,0.00023812,7]
[391164752,1760404261792,-151.0,0.00023812,2]
[391164753,1760404261802,-151.0,0.00023812,7]
[391164754,1760404261812,-151.0,0.00023812,7]
[391164755,1760404261821,-163.570644,0.00023812,7]
[391164756,1760404261831,-286.13694599,0.00023818,2]
[391164757,1760404261840,-500.0,0.00023891,2]
[391164758,1760404261850,-503.72212245,0.00023908,2]
[391164759,1760404261859,-1000.0,0.00023908,2]
[391164760,1760404261869,-1071.46762048,0.00023908,2]
[391164761,1760404261878,-1002.74911584,0.00023908,2]
[391164762,1760404261887,-500.0,0.00024015,2]
[391164763,1760404261896,-2500.0,0.00024064,2]
[391164764,1760404261906,-2500.0,0.00024064,2]
[391164765,1760404261916,-2500.0,0.00024064,2]
[391164766,1760404261925,-505.64956164,0.00024106,2]
[391164767,1760404261935,-500.6368061,0.00024106,2]
[391164768,1760404261945,-360.0,0.00024113,2]
[391164769,1760404261954,-151.0,0.00024164,7]
[391164770,1760404261963,-151.0,0.00024164,7]
[391164771,1760404261973,-151.0,0.00024164,7]
[391164772,1760404261983,-211.852336,0.00024164,7]
[391164773,1760404261993,-211.852336,0.00024164,7]
[391164774,1760404262007,-211.852336,0.00024164,7]
[391164775,1760404262016,-211.852336,0.00024164,7]
[391164776,1760404262028,-151.0,0.00024164,7]
[391164777,1760404262037,-511.58800229,0.00024164,2]
[391164778,1760404262048,-2500.0,0.00024164,2]
[391164779,1760404262057,-2300.13544049,0.00024164,2]
[391164780,1760404262067,-2500.0,0.00024164,2]
[391164781,1760404262076,-500.0,0.00024165,2]
[391164782,1760404262085,-20006.03981059,0.0002436,2]
[391164783,1760404262095,-163.30707133,0.0002436,2]
[391164784,1760404262105,-151.0,0.0002436,2]
[391164785,1760404262114,-151.0,0.0002436,7]
[391164786,1760404262124,-151.0,0.0002436,7]
[391164787,1760404262133,-151.0,0.0002436,7]
[391164788,1760404262142,-312.96228468,0.00024418,2]
[391164789,1760404262151,-8167.71126429,0.00024443,2]
[391164790,1760404262160,-1502.47862123,0.00024456,2]
[391164791,1760404262170,-720.0,0.00024475,20]
[391164792,1760404262179,-22817.19,0.000245,3]
[391164793,1760404262189,-181.01326445,0.00024543,7]
[391164794,1760404262198,-1000.0,0.00024563,2]
[391164795,1760404262207,-411.0,0.00024564,2]
[391164796,1760404262216,-416.952,0.00024564,2]
[391164797,1760404262225,-151.0,0.000246,7]
[391164798,1760404262234,-151.0,0.000246,7]
[391164799,1760404262243,-151.0,0.000246,7]
[391164800,1760404262252,-151.0,0.000246,7]
[391164801,1760404262261,-151.0,0.000246,7]
[391164802,1760404262270,-151.0,0.000246,7]
[391164803,1760404262281,-151.0,0.000246,7]
[391164804,1760404262290,-151.0,0.000246,7]
[391164805,1760404262299,-151.0,0.000246,7]
[391164806,1760404262308,-151.0,0.000246,7]
[391164807,1760404262317,-151.0,0.000246,7]
[391164808,1760404262326,-464.007783,0.000246,7]
[391164809,1760404262335,-151.0,0.000246,7]
[391164810,1760404262344,-464.007783,0.000246,7]
[391164811,1760404262353,-151.0,0.000246,7]
[391164812,1760404262362,-151.0,0.000246,7]
[391164813,1760404262371,-464.007783,0.000246,7]
[391164814,1760404262380,-151.0,0.000246,7]
[391164815,1760404262389,-464.007783,0.000246,7]
[391164816,1760404262398,-151.0,0.000246,7]
[391164817,1760404262407,-151.0,0.000246,7]
[391164818,1760404262416,-151.0,0.000246,7]
[391164819,1760404262426,-151.0,0.000246,7]
[391164820,1760404262435,-151.0,0.000246,7]
[391164821,1760404262444,-151.0,0.000246,7]
[391164822,1760404262453,-45634.38,0.000246,3]
[391164823,1760404262462,-3000.0,0.00024612,2]
[391164824,1760404262471,-500.0,0.00024612,2]
[391164825,1760404262481,-2506.85177544,0.00024612,2]
[391164826,1760404262490,-151.0,0.00024621,7]
[391164827,1760404262499,-217.827065,0.00024621,7]
[391164828,1760404262509,-217.827065,0.00024621,7]
[391164829,1760404262518,-217.827065,0.00024621,7]
[391164830,1760404262528,-151.0,0.00024621,7]
[391164831,1760404262537,-217.827065,0.00024621,7]
[391164832,1760404262547,-151.0,0.00024621,7]
[391164833,1760404262556,-151.0,0.00024621,7]
[391164834,1760404262565,-151.0,0.00024621,7]
[391164835,1760404262575,-176.034416,0.00024621,7]
[391164836,1760404262584,-168.3888056,0.00024633,2]
[391164837,1760404262593,-1500.0,0.00024657,8]
[391164838,1760404262602,-300.0,0.00024661,2]
[391164839,1760404262611,-737.83368408,0.00024712,2]
[391164840,1760404262621,-3000.0,0.00024712,2]
[391164841,1760404262630,-273.09,0.00024762,2]
[391164842,1760404262639,-3000.0,0.000248,2]
[391164843,1760404262649,-25267.68,0.000248,7]
[391164844,1760404262658,-151.0,0.000248,7]
[391164845,1760404262668,-151.0,0.000248,7]
[391164846,1760404262678,-151.0,0.000248,7]
[391164847,1760404262687,-150.0,0.000248,10]
[391164848,1760404262697,-151.0,0.000248,7]
[391164849,1760404262707,-159.356212,0.000248,7]
[391164850,1760404262716,-4188.82395261,0.000248,2]
[391164851,1760404262726,-462.351807,0.000248,7]
[391164852,1760404262735,-462.351807,0.000248,7]
[391164853,1760404262746,-462.351807,0.000248,7]
[391164854,1760404262756,-462.351807,0.000248,7]
[391164855,1760404262765,-151.0,0.000248,7]
[391164856,1760404262777,-151.0,0.000248,7]